fUSD/lending_fUSD_20250414
["ID","MTS","AMOUNT","RATE_DAILY","PERIOD"]
[358005088,1744651150445,-435.68171857,0.00017886,2]
[358005089,1744651150456,-435.68171857,0.00017886,2]
[358005090,1744651150469,-435.68171857,0.00017886,2]
[358005091,1744651150481,-190.62373611,0.00017886,2]
[358005092,1744651150490,-245.05798246,0.00017886,2]
[358005093,1744651150507,-254.94201754,0.00017886,2]
[358005094,1744651150515,-180.73970103,0.00017886,2]
[358005095,1744651150532,-319.26029897,0.00017886,2]
[358005096,1744651150541,-116.4214196,0.00017886,2]
[358005097,1744651150552,-435.68171857,0.00017886,2]
[358005098,1744651150569,-435.68171857,0.00017886,2]
[358005099,1744651150585,-435.68171857,0.00017886,2]
[358005100,1744651150596,-435.68171857,0.00017886,2]
[358005101,1744651150614,-435.68171857,0.00017886,2]
[358005102,1744651150625,-153.63998755,0.00017886,2]
[358005103,1744651150634,-282.04173102,0.00017886,2]
[358005104,1744651150645,-217.95826898,0.00017886,2]
[358005105,1744651150654,-217.72344959,0.00017886,2]
[358005106,1744651150665,-282.27655041,0.00017886,2]
[358005107,1744651150675,-153.40516816,0.00017886,2]
[358005108,1744651150686,-435.68171857,0.00017886,2]
[358005109,1744651150702,-435.68171857,0.00017886,2]
[358005110,1744651150721,-435.68171857,0.00017886,2]
[358005111,1744651150741,-435.68171857,0.00017886,2]
[358005112,1744651150752,-435.68171857,0.00017886,2]
[358005113,1744651150764,-116.65623899,0.00017886,2]
[358005114,1744651150774,-319.02547958,0.00017886,2]
[358005115,1744651150791,-180.97452042,0.00017886,2]
[358005116,1744651150801,-254.70719815,0.00017886,2]
[358005117,1744651150812,-435.68171857,0.00017886,2]
[358005118,1744651150830,-435.68171857,0.00017886,2]
[358005119,1744651150847,-435.68171857,0.00017886,2]
[358005120,1744651150863,-435.68171857,0.00017886,2]
[358005121,1744651150886,-435.68171857,0.00017786,2]
[358005122,1744651150897,-254.86258143,0.00017786,2]
[358005123,1744651150906,-180.81913714,0.00017886,2]
[358005124,1744651150927,-270.21679043,0.00017886,2]
[358005125,1744651150936,-165.46492814,0.00017886,2]
[358005126,1744651150952,-435.68171857,0.00017886,2]
[358005127,1744651150982,-435.68171857,0.00017886,2]
[358005128,1744651150994,-435.68171857,0.00017886,2]
[358005129,1744651151011,-306.84,0.00017886,2]
[358005130,1744651151032,-435.68171857,0.00017886,2]
[358005131,1744651151060,-233.43819758,0.00017886,2]
[358005132,1744651151069,-202.24352099,0.00017887,2]
[358005133,1744651151087,-297.75647901,0.00017887,2]
[358005134,1744651151096,-137.92523956,0.00017887,2]
[358005135,1744651151121,-362.07476044,0.00017887,2]
[358005136,1744651151131,-73.60695813,0.00017887,2]
[358005137,1744651151164,-426.39304187,0.00017887,2]
[358005138,1744651151174,-9.2886767,0.00017887,2]
[358005139,1744651151209,-435.68171857,0.00017887,2]
[358005140,1744651151226,-435.68171857,0.00017887,2]
[358005141,1744651151249,-435.68171857,0.00017887,2]
[358005142,1744651151277,-435.68171857,0.00017887,2]
[358005143,1744651151297,-351.45,0.00017887,2]
[358005144,1744651151322,-345.00444902,0.00017887,2]
[358005145,1744651151331,-90.67726955,0.00017887,2]
[358005146,1744651151348,-409.32273045,0.00017887,2]
[358005147,1744651151357,-26.35898812,0.00017887,2]
[358005148,1744651151386,-435.68171857,0.00017887,2]
[358005149,1744651151403,-37.95929331,0.00017887,2]
[358005150,1744651151412,-397.72242526,0.00017887,2]
[358005151,1744651151435,-435.68171857,0.00017887,2]
[358005152,1744651151457,-435.68171857,0.00017887,2]
[358005153,1744651151534,-435.68171857,0.00017886,2]
[358005154,1744651151550,-64.31828143,0.00017886,2]
[358005155,1744651151559,-371.36343714,0.00017887,2]
[358005156,1744651151589,-435.68171857,0.00017887,2]
[358005157,1744651151600,-372.33898189,0.00017887,2]
[358005158,1744651151609,-63.34273668,0.00017887,2]
[358005159,1744651151625,-156.74499104,0.00017886,2]
[358005160,1744651151636,-343.25500896,0.00017886,2]
[358005161,1744651151646,-92.42670961,0.00017887,2]
[358005162,1744651151663,-344.23055371,0.00017887,2]
[358005163,1744651151672,-91.45116486,0.00017887,2]
[358005164,1744651151700,-408.54883514,0.00017887,2]
[358005165,1744651151709,-27.13288343,0.00017887,2]
[358005166,1744651151739,-435.68171857,0.00017887,2]
[358005167,1744651151762,-435.68171857,0.00017887,2]
[358005168,1744651151778,-435.68171857,0.00017887,2]
[358005169,1744651151795,-435.68171857,0.00017887,2]
[358005170,1744651151811,-435.68171857,0.00017887,2]
[358005171,1744651151838,-242.92852372,0.00017887,2]
[358005172,1744651151847,-192.75319485,0.00017887,2]
[358005173,1744651151863,-307.24680515,0.00017887,2]
[358005174,1744651151872,-128.43491342,0.00017887,2]
[358005175,1744651151894,-371.56508658,0.00017887,2]
[358005176,1744651151903,-64.11663199,0.00017887,2]
[358005177,1744651151926,-435.68171857,0.00017887,2]
[358005178,1744651151945,-435.68171857,0.00017887,2]
[358005179,1744651151956,-435.68171857,0.00017887,2]
[358005180,1744651151970,-435.68171857,0.00017887,2]
[358005181,1744651151990,-435.68171857,0.00017887,2]
[358005182,1744651152011,-205.94477516,0.00017887,2]
[358005183,1744651152020,-229.73694341,0.00017887,2]
[358005184,1744651152042,-435.68171857,0.00017887,2]
[358005185,1744651152058,-435.68171857,0.00017887,2]
[358005186,1744651152074,-435.68171857,0.00017887,2]
[358005187,1744651152093,-435.68171857,0.00017887,2]
[358005188,1744651152116,-435.68171857,0.00017887,2]
[358005189,1744651152141,-40.32446374,0.00017887,2]
[358005190,1744651152151,-395.35725483,0.00017888,2]
[358005191,1744651152161,-94.33199592,0.00017888,2]
[358005192,1744651152171,-341.34972265,0.00017888,2]
[358005193,1744651152197,-158.65027735,0.00017888,2]
[358005194,1744651152208,-277.03144122,0.00017888,2]
[358005195,1744651152227,-222.96855878,0.00017888,2]
[358005196,1744651152237,-212.71315979,0.00017888,2]
[358005197,1744651152249,-287.28684021,0.00017888,2]
[358005198,1744651152258,-148.39487836,0.00017888,2]
[358005199,1744651152272,-351.60512164,0.00017888,2]
[358005200,1744651152282,-84.07659693,0.00017888,2]
[358005201,1744651152311,-435.68171857,0.00017888,2]
[358005202,1744651152329,-68.77164355,0.00017888,2]
[358005203,1744651152339,-366.91007502,0.00017888,2]
[358005204,1744651152351,-435.68171857,0.00017888,2]
[358005205,1744651152369,-435.68171857,0.00017888,2]
[358005206,1744651152381,-435.68171857,0.00017888,2]
[358005207,1744651152397,-435.68171857,0.00017888,2]
[358005208,1744651152415,-435.68171857,0.00017888,2]
[358005209,1744651152435,-251.00133213,0.00017888,2]
[358005210,1744651152444,-148.70587838,0.00017888,2]
[358005211,1744651152465,-435.68171857,0.00017888,2]
[358005212,1744651152484,-435.68171857,0.00017888,2]
[358005213,1744651152496,-435.68171857,0.00017888,2]
[358005214,1744651152507,-435.68171857,0.00017888,2]
[358005215,1744651152519,-435.68171857,0.00017888,2]
[358005216,1744651152544,-317.70840838,0.00017888,2]
[358005217,1744651152560,-151.49712039,0.00017888,2]
[358005218,1744651152570,-284.18459818,0.00017888,2]
[358005219,1744651152587,-435.68171857,0.00017888,2]
[358005220,1744651152604,-435.68171857,0.00017888,2]
[358005221,1744651152616,-435.68171857,0.00017888,2]
[358005222,1744651152628,-151.0,0.00017888,2]
[358005223,1744651152639,-435.68171857,0.00017888,2]
[358005224,1744651152697,-435.68171857,0.00017888,2]
[358005225,1744651152708,-182.72680897,0.00017888,2]
[358005226,1744651152720,-252.9549096,0.00017888,2]
[358005227,1744651152738,-435.68171857,0.00017888,2]
[358005228,1744651152753,-435.68171857,0.00017888,2]
[358005229,1744651152774,-435.68171857,0.00017888,2]
[358005230,1744651152791,-435.68171857,0.00017888,2]
[358005231,1744651152806,-435.68171857,0.00017888,2]
[358005232,1744651152823,-364.95649755,0.00017888,2]
[358005233,1744651152833,-70.72522102,0.00017888,2]
[358005234,1744651152853,-435.68171857,0.00017886,2]
[358005235,1744651152868,-64.31828143,0.00017886,2]
[358005236,1744651152878,-271.88171857,0.00017888,2]
[358005237,1744651152895,-232.13306041,0.00017888,2]
[358005238,1744651152904,-203.54865816,0.00017888,2]
[358005239,1744651152915,-371.19134184,0.00017888,2]
[358005240,1744651152924,-64.49037673,0.00017888,2]
[358005241,1744651152945,-435.68171857,0.00017888,2]
[358005242,1744651152971,-74.5679047,0.00017888,2]
[358005243,1744651152981,-361.11381387,0.00017888,2]
[358005244,1744651153001,-435.68171857,0.00017886,2]
[358005245,1744651153013,-64.31828143,0.00017886,2]
[358005246,1744651153022,-213.62618613,0.00017888,2]
[358005247,1744651153031,-157.73725101,0.00017888,2]
[358005248,1744651153043,-342.26274899,0.00017888,2]
[358005249,1744651153052,-93.41896958,0.00017888,2]
[358005250,1744651153062,-435.68171857,0.00017888,2]
[358005251,1744651153085,-61.44931185,0.00017888,2]
[358005252,1744651153094,-294.26068815,0.00017888,2]
[358005253,1744651153105,-205.73931185,0.00017888,2]
[358005254,1744651153115,-229.94240672,0.00017888,2]
[358005255,1744651153136,-270.05759328,0.00017888,2]
[358005256,1744651153146,-165.62412529,0.00017888,2]
[358005257,1744651153157,-344.45587471,0.00017888,2]
[358005258,1744651153166,-91.22584386,0.00017888,2]
[358005259,1744651153186,-435.68171857,0.00017888,2]
[358005260,1744651153199,-435.68171857,0.00017888,2]
[358005261,1744651153212,-435.68171857,0.00017888,2]
[358005262,1744651153230,-435.68171857,0.00017888,2]
[358005263,1744651153248,-435.68171857,0.00017888,2]
[358005264,1744651153261,-435.68171857,0.00017888,2]
[358005265,1744651153273,-435.68171857,0.00017888,2]
[358005266,1744651153289,-435.68171857,0.00017888,2]
[358005267,1744651153492,-435.68171857,0.00017888,2]
[358005268,1744651153518,-435.68171857,0.00017888,2]
[358005269,1744651153529,-435.68171857,0.00017888,2]
[358005270,1744651153547,-322.98611099,0.00017888,2]
[358005271,1744651153562,-435.68171857,0.00017888,2]
[358005272,1744651153577,-41.24742231,0.00017888,2]
[358005273,1744651153586,-394.43429626,0.00017888,2]
[358005274,1744651153597,-435.68171857,0.00017888,2]
[358005275,1744651153609,-435.68171857,0.00017888,2]
[358005276,1744651153625,-435.68171857,0.00017888,2]
[358005277,1744651153646,-435.68171857,0.00017888,2]
[358005278,1744651153657,-396.85690574,0.00017888,2]
[358005279,1744651153673,-435.68171857,0.00017888,2]
[358005280,1744651153684,-435.68171857,0.00017888,2]
[358005281,1744651153696,-435.68171857,0.00017888,2]
[358005282,1744651153707,-435.68171857,0.00017888,2]
[358005283,1744651153720,-435.68171857,0.00017888,2]
[358005284,1744651153731,-435.68171857,0.00017888,2]
[358005285,1744651153746,-435.68171857,0.00017888,2]
[358005286,1744651153761,-99.84989373,0.00017888,2]
[358005287,1744651153771,-335.83182484,0.00017888,2]
[358005288,1744651153782,-435.68171857,0.00017888,2]
[358005289,1744651153798,-435.68171857,0.00017888,2]
[358005290,1744651153810,-435.68171857,0.00017888,2]
[358005291,1744651153821,-435.68171857,0.00017888,2]
[358005292,1744651153833,-435.68171857,0.00017888,2]
[358005293,1744651153849,-435.68171857,0.00017888,2]
[358005294,1744651153861,-435.68171857,0.00017888,2]
[358005295,1744651153876,-435.68171857,0.00017888,2]
[358005296,1744651153887,-435.68171857,0.00017888,2]
[358005297,1744651153903,-435.68171857,0.00017888,2]
[358005298,1744651153914,-435.68171857,0.00017888,2]
[358005299,1744651153925,-435.68171857,0.00017888,2]
[358005300,1744651153936,-119.62755232,0.00017888,2]
[358005301,1744651153946,-316.05416625,0.00017888,2]
[358005302,1744651153957,-435.68171857,0.00017888,2]
[358005303,1744651153972,-435.68171857,0.00017888,2]
[358005304,1744651153987,-435.68171857,0.00017888,2]
[358005305,1744651154016,-435.68171857,0.00017888,2]
[358005306,1744651154056,-435.68171857,0.00017888,2]
[358005307,1744651154067,-435.68171857,0.00017888,2]
[358005308,1744651154078,-435.68171857,0.00017888,2]
[358005309,1744651154093,-435.68171857,0.00017888,2]
[358005310,1744651154109,-435.68171857,0.00017888,2]
[358005311,1744651154119,-435.68171857,0.00017888,2]
[358005312,1744651154131,-435.68171857,0.00017888,2]
[358005313,1744651154141,-435.68171857,0.00017888,2]
[358005314,1744651154153,-139.40521091,0.00017888,2]
[358005315,1744651154162,-296.27650766,0.00017888,2]
[358005316,1744651154177,-435.68171857,0.00017888,2]
[358005317,1744651154189,-322.55177377,0.00017888,2]
[358005318,1744651154200,-113.1299448,0.00017888,2]
[358005319,1744651154211,-386.8700552,0.00017888,2]
[358005320,1744651154221,-48.81166337,0.00017888,2]
[358005321,1744651154231,-435.68171857,0.00017888,2]
[358005322,1744651154244,-214.26200377,0.00017888,2]
[358005323,1744651154258,-151.0,0.00017888,2]
[358005324,1744651154269,-204.75461429,0.00017888,2]
[358005325,1744651154279,-53.99242071,0.00017888,2]
[358005326,1744651154290,-435.68171857,0.00017888,2]
[358005327,1744651154302,-10.32586072,0.00017888,2]
[358005328,1744651154312,-425.35585785,0.00017888,2]
[358005329,1744651154323,-435.68171857,0.00017888,2]
[358005330,1744651154338,-193.47242358,0.00017888,2]
[358005331,1744651154347,-242.20929499,0.00017888,2]
[358005332,1744651154359,-257.79070501,0.00017888,2]
[358005333,1744651154369,-177.89101356,0.00017888,2]
[358005334,1744651154384,-435.68171857,0.00017888,2]
[358005335,1744651154395,-435.68171857,0.00017888,2]
[358005336,1744651154407,-5.2555493,0.00017888,2]
[358005337,1744651154417,-430.42616927,0.00017888,2]
[358005338,1744651154472,-69.57383073,0.00017888,2]
[358005339,1744651154480,-366.10788784,0.00017888,2]
[358005340,1744651154492,-133.89211216,0.00017888,2]
[358005341,1744651154502,-301.78960641,0.00017888,2]
[358005342,1744651154518,-198.21039359,0.00017888,2]
[358005343,1744651154528,-237.47132498,0.00017888,2]
[358005344,1744651154540,-273.19867502,0.00017888,2]
[358005345,1744651154550,-162.48304355,0.00017888,2]
[358005346,1744651154562,-337.51695645,0.00017888,2]
[358005347,1744651154572,-98.16476212,0.00017888,2]
[358005348,1744651154583,-401.83523788,0.00017888,2]
[358005349,1744651154593,-33.84648069,0.00017888,2]
[358005350,1744651154605,-435.68171857,0.00017888,2]
[358005351,1744651154620,-30.47180074,0.00017888,2]
[358005352,1744651154629,-405.20991783,0.00017888,2]
[358005353,1744651154641,-94.79008217,0.00017888,2]
[358005354,1744651154650,-340.8916364,0.00017888,2]
[358005355,1744651154662,-435.68171857,0.00017888,2]
[358005356,1744651154673,-435.68171857,0.00017888,2]
[358005357,1744651154710,-259.61225246,0.00017888,2]
[358005358,1744651154721,-176.06946611,0.00017888,2]
[358005359,1744651154736,-435.68171857,0.00017888,2]
[358005360,1744651154753,-435.68171857,0.00017887,2]
[358005361,1744651154765,-64.31828143,0.00017887,2]
[358005362,1744651154774,-371.36343714,0.00017888,2]
[358005363,1744651154786,-435.68171857,0.00017888,2]
[358005364,1744651154799,-53.07098561,0.00017888,2]
[358005365,1744651154808,-382.61073296,0.00017888,2]
[358005366,1744651154820,-435.68171857,0.00017888,2]
[358005367,1744651154851,-435.68171857,0.00017888,2]
[358005368,1744651154867,-217.8931559,0.00017888,2]
[358005369,1744651154877,-128.3168441,0.00017888,2]
[358005370,1744651154892,-371.6831559,0.00017888,2]
[358005371,1744651154902,-63.99856267,0.00017888,2]
[358005372,1744651154917,-435.68171857,0.00017888,2]
[358005373,1744651154929,-0.31971876,0.00017888,2]
[358005374,1744651154938,-435.36199981,0.00017888,2]
[358005375,1744651154955,-180.08800019,0.00017888,2]
[358005376,1744651154964,-255.59371838,0.00017888,2]
[358005377,1744651154981,-151.0,0.00017888,2]
[358005378,1744651154992,-151.0,0.00017888,2]
[358005379,1744651155009,-151.0,0.00017888,2]
[358005380,1744651155026,-151.0,0.00017888,2]
[358005381,1744651155048,-300.0,0.00017885,2]
[358005382,1744651155057,-135.68171857,0.00017888,2]
[358005383,1744651155074,-151.0,0.00017888,2]
[358005384,1744651155093,-325.59188905,0.00017888,2]
[358005385,1744651155103,-110.08982952,0.00017888,2]
[358005386,1744651155119,-435.68171857,0.00017885,2]
[358005387,1744651155136,-64.31828143,0.00017885,2]
[358005388,1744651155145,-90.11581157,0.00017888,2]
[358005389,1744651155166,-241.898102,0.00017888,2]
[358005390,1744651155178,-300.65625691,0.00017888,2]
[358005391,1744651155188,-135.02546166,0.00017888,2]
[358005392,1744651155211,-435.68171857,0.00017888,2]
[358005393,1744651155224,-435.68171857,0.00017888,2]
[358005394,1744651155239,-435.68171857,0.00017888,2]
[358005395,1744651155251,-29.79670863,0.00017888,2]
[358005396,1744651155260,-405.88500994,0.00017888,2]
[358005397,1744651155278,-336.87499006,0.00017888,2]
[358005398,1744651155288,-98.80672851,0.00017888,2]
[358005399,1744651155303,-435.68171857,0.00017888,2]
[358005400,1744651155316,-208.27155292,0.00017888,2]
[358005401,1744651155326,-227.41016565,0.00017888,2]
[358005402,1744651155336,-435.68171857,0.00017888,2]
[358005403,1744651155347,-435.68171857,0.00017888,2]
[358005404,1744651155358,-373.09372321,0.00017888,2]
[358005405,1744651155368,-62.58799536,0.00017888,2]
[358005406,1744651155381,-435.68171857,0.00017888,2]
[358005407,1744651155393,-244.49028607,0.00017888,2]
[358005408,1744651155402,-151.0,0.00017888,2]
[358005409,1744651155411,-40.1914325,0.00017888,2]
[358005410,1744651155423,-435.68171857,0.00017888,2]
[358005411,1744651155438,-24.12684893,0.00017888,2]
[358005412,1744651155448,-411.55486964,0.00017888,2]
[358005413,1744651155459,-88.44513036,0.00017888,2]
[358005414,1744651155471,-347.23658821,0.00017888,2]
[358005415,1744651155482,-152.76341179,0.00017888,2]
[358005416,1744651155492,-282.91830678,0.00017888,2]
[358005417,1744651155509,-217.08169322,0.00017888,2]
[358005418,1744651155519,-218.60002535,0.00017888,2]
[358005419,1744651155530,-281.39997465,0.00017888,2]
[358005420,1744651155539,-154.28174392,0.00017888,2]
[358005421,1744651155551,-345.71825608,0.00017888,2]
[358005422,1744651155561,-89.96346249,0.00017888,2]
[358005423,1744651155572,-410.03653751,0.00017888,2]
[358005424,1744651155581,-25.64518106,0.00017888,2]
[358005425,1744651155596,-435.68171857,0.00017888,2]
[358005426,1744651155607,-38.67310037,0.00017888,2]
[358005427,1744651155616,-397.0086182,0.00017888,2]
[358005428,1744651155631,-102.9913818,0.00017888,2]
[358005429,1744651155640,-332.69033677,0.00017888,2]
[358005430,1744651155651,-167.30966323,0.00017888,2]
[358005431,1744651155660,-268.37205534,0.00017888,2]
[358005432,1744651155671,-336.20219836,0.00017888,2]
[358005433,1744651155681,-99.47952021,0.00017888,2]
[358005434,1744651155693,-156.445801,0.00017888,2]
[358005435,1744651155704,-151.0,0.00017888,2]
[358005436,1744651155715,-93.07467879,0.00017888,2]
[358005437,1744651155725,-57.92532121,0.00017888,2]
[358005438,1744651155741,-224.00352879,0.00017888,2]
[358005439,1744651155750,-211.67818978,0.00017888,2]
[358005440,1744651155761,-151.0,0.00017888,2]
[358005441,1744651155772,-157.03181022,0.00017888,2]
[358005442,1744651155782,-278.64990835,0.00017888,2]
[358005443,1744651155793,-151.0,0.00017888,2]
[358005444,1744651155808,-90.06009165,0.00017888,2]
[358005445,1744651155817,-345.62162692,0.00017888,2]
[358005446,1744651155828,-151.0,0.00017888,2]
[358005447,1744651155843,-23.08837308,0.00017888,2]
[358005448,1744651155853,-412.59334549,0.00017888,2]
[358005449,1744651155864,-107.11665451,0.00017888,2]
[358005450,1744651155873,-43.88334549,0.00017888,2]
[358005451,1744651155889,-151.0,0.00017888,2]
[358005452,1744651155961,-151.0,0.00017888,2]
[358005453,1744651155974,-154.11665451,0.00017888,2]
[358005454,1744651155984,-2.57889149,0.00017888,2]
[358005455,1744651155999,-435.68171857,0.00017888,2]
[358005456,1744651156010,-61.73938994,0.00017888,2]
[358005457,1744651156019,-373.94232863,0.00017888,2]
[358005458,1744651156031,-126.05767137,0.00017888,2]
[358005459,1744651156041,-309.6240472,0.00017888,2]
[358005460,1744651156051,-301.8459528,0.00017888,2]
[358005461,1744651156061,-133.83576577,0.00017888,2]
[358005462,1744651156071,-435.68171857,0.00017888,2]
[358005463,1744651156083,-252.68251566,0.00017888,2]
[358005464,1744651156091,-182.99920291,0.00017888,2]
[358005465,1744651156128,-435.68171857,0.00017888,2]
[358005466,1744651156162,-203.51907852,0.00017888,2]
[358005467,1744651156171,-232.16264005,0.00017888,2]
[358005468,1744651156242,-435.68171857,0.00017888,2]
[358005469,1744651156331,-435.68171857,0.00017886,2]
[358005470,1744651156418,-64.31828143,0.00017886,2]
[358005471,1744651156437,-154.35564138,0.00017888,2]
[358005472,1744651156468,-217.00779576,0.00017888,2]
[358005473,1744651156594,-435.68171857,0.00017888,2]
[358005474,1744651156678,-169.51048567,0.00017888,2]
[358005475,1744651156687,-151.0,0.00017888,2]
[358005476,1744651156697,-115.1712329,0.00017888,2]
[358005477,1744651156730,-35.8287671,0.00017888,2]
[358005478,1744651156740,-151.0,0.00017888,2]
[358005479,1744651156749,-159.467439,0.00017888,2]
[358005480,1744651156758,-89.38551247,0.00017888,2]
[358005481,1744651156769,-61.61448753,0.00017888,2]
[358005482,1744651156778,-342.92748669,0.00017888,2]
[358005483,1744651156796,-207.681012,0.00017886,2]
[358005484,1744651156807,-292.318988,0.00017886,2]
[358005485,1744651156816,-143.36273057,0.00017888,2]
[358005486,1744651156827,-13.70978274,0.00017888,2]
[358005487,1744651156838,-421.97193583,0.00017888,2]
[358005488,1744651156852,-78.02806417,0.00017888,2]
[358005489,1744651156862,-357.6536544,0.00017888,2]
[358005490,1744651156882,-280.02559599,0.00017888,2]
[358005491,1744651156891,-151.0,0.00017888,2]
[358005492,1744651156901,-4.65612258,0.00017888,2]
[358005493,1744651156915,-435.68171857,0.00017888,2]
[358005494,1744651156928,-59.66215885,0.00017888,2]
[358005495,1744651156938,-376.01955972,0.00017888,2]
[358005496,1744651156956,-435.68171857,0.00017886,2]
[358005497,1744651156968,-64.31828143,0.00017886,2]
[358005498,1744651156981,-91.94990757,0.00017888,2]
[358005499,1744651157000,-32.03053271,0.00017888,2]
[358005500,1744651157009,-403.65118586,0.00017888,2]
[358005501,1744651157026,-187.40944419,0.00017888,2]
[358005502,1744651157036,-151.0,0.00017888,2]
[358005503,1744651157045,-97.27227438,0.00017888,2]
[358005504,1744651157057,-53.72772562,0.00017888,2]
[358005505,1744651157066,-381.95399295,0.00017888,2]
[358005506,1744651157077,-118.04600705,0.00017888,2]
[358005507,1744651157086,-317.63571152,0.00017888,2]
[358005508,1744651157109,-400.8,0.00017886,2]
[358005509,1744651157274,-34.88171857,0.00017888,2]
[358005510,1744651157336,-147.48256991,0.00017888,2]
[358005511,1744651157347,-288.19914866,0.00017888,2]
[358005512,1744651157362,-211.80085134,0.00017888,2]
[358005513,1744651157372,-223.88086723,0.00017888,2]
[358005514,1744651157386,-401.55347974,0.00017888,2]
[358005515,1744651157396,-34.12823883,0.00017888,2]
[358005516,1744651157409,-142.60102917,0.00017888,2]
[358005517,1744651157419,-293.0806894,0.00017888,2]
[358005518,1744651157431,-206.9193106,0.00017888,2]
[358005519,1744651157441,-228.76240797,0.00017888,2]
[358005520,1744651157458,-271.23759203,0.00017888,2]
[358005521,1744651157467,-151.0,0.00017888,2]
[358005522,1744651157477,-13.44412654,0.00017888,2]
[358005523,1744651157493,-144.58837746,0.00017888,2]
[358005524,1744651157503,-291.09334111,0.00017888,2]
[358005525,1744651157514,-208.90665889,0.00017888,2]
[358005526,1744651157524,-226.77505968,0.00017888,2]
[358005527,1744651157535,-273.22494032,0.00017888,2]
[358005528,1744651157545,-162.45677825,0.00017888,2]
[358005529,1744651157557,-337.54322175,0.00017888,2]
[358005530,1744651157566,-98.13849682,0.00017888,2]
[358005531,1744651157578,-401.86150318,0.00017888,2]
[358005532,1744651157588,-33.82021539,0.00017888,2]
[358005533,1744651157604,-435.68171857,0.00017888,2]
[358005534,1744651157669,-30.49806604,0.00017888,2]
[358005535,1744651157679,-405.18365253,0.00017888,2]
[358005536,1744651157768,-94.81634747,0.00017888,2]
[358005537,1744651157778,-340.8653711,0.00017888,2]
[358005538,1744651157895,-159.1346289,0.00017888,2]
[358005539,1744651157906,-5.0998244,0.00017888,2]
[358005540,1744651157945,-435.68171857,0.00017888,2]
[358005541,1744651157984,-59.21845703,0.00017888,2]
[358005542,1744651157993,-259.99727097,0.00017888,2]
[358005543,1744651158031,-240.00272903,0.00017888,2]
[358005544,1744651158040,-79.21299897,0.00017888,2]
[358005545,1744651158052,-238.43813909,0.00017888,2]
[358005546,1744651158061,-80.77758891,0.00017888,2]
[358005547,1744651158076,-319.215728,0.00017888,2]
[358005548,1744651158088,-100.00668309,0.00017888,2]
[358005549,1744651158097,-219.20904491,0.00017888,2]
[358005550,1744651158118,-280.79095509,0.00017888,2]
[358005551,1744651158128,-38.42477291,0.00017888,2]
[358005552,1744651158139,-435.68171857,0.00017888,2]
[358005553,1744651158151,-25.89350852,0.00017888,2]
[358005554,1744651158160,-157.141145,0.00017888,2]
[358005555,1744651158170,-252.64706505,0.00017888,2]
[358005556,1744651158181,-435.68171857,0.00017888,2]
[358005557,1744651158200,-435.68171857,0.00017888,2]
[358005558,1744651158215,-435.68171857,0.00017888,2]
[358005559,1744651158229,-435.68171857,0.00017888,2]
[358005560,1744651158243,-435.68171857,0.00017888,2]
[358005561,1744651158259,-71.9043421,0.00017888,2]
[358005562,1744651158269,-363.77737647,0.00017888,2]
[358005563,1744651158287,-136.22262353,0.00017888,2]
[358005564,1744651158297,-299.45909504,0.00017888,2]
[358005565,1744651158314,-151.0,0.00017888,2]
[358005566,1744651158330,-435.68171857,0.00017888,2]
[358005567,1744651158384,-435.68171857,0.00017888,2]
[358005568,1744651158400,-435.68171857,0.00017888,2]
[358005569,1744651158417,-435.68171857,0.00017888,2]
[358005570,1744651158431,-309.77403068,0.00017888,2]
[358005571,1744651158440,-125.90768789,0.00017888,2]
[358005572,1744651158472,-374.09231211,0.00017888,2]
[358005573,1744651158482,-61.58940646,0.00017888,2]
[358005574,1744651158494,-435.68171857,0.00017888,2]
[358005575,1744651158511,-2.72887497,0.00017888,2]
[358005576,1744651158520,-432.9528436,0.00017888,2]
[358005577,1744651158555,-67.0471564,0.00017888,2]
[358005578,1744651158565,-368.63456217,0.00017888,2]
[358005579,1744651158576,-435.68171857,0.00017888,2]
[358005580,1744651158588,-435.68171857,0.00017888,2]
[358005581,1744651158606,-151.0,0.00017886,2]
[358005582,1744651158631,-349.0,0.00017886,2]
[358005583,1744651158641,-86.68171857,0.00017888,2]
[358005584,1744651158657,-435.68171857,0.00017888,2]
[358005585,1744651158673,-435.68171857,0.00017888,2]
[358005586,1744651158685,-304.91684498,0.00017888,2]
[358005587,1744651158696,-130.76487359,0.00017888,2]